[Event "*** Titled Tuesday Blitz"]
[Site "Chess.com"]
[Date "2020.11.10"]
[Round "6"]
[White "Evgeny81"]
[Black "bazar-wokzal"]
[Result "1-0"]
[WhiteElo "2713"]
[BlackElo "2498"]
[TimeControl "180+1"]
[EndTime "11:10:09 PST"]
[Termination "Evgeny81 won by resignation"]

1. e4 {[%clk 0:03:00.9]} 1... Nc6 {[%clk 0:02:58.5]} 2. d4 {[%clk 0:02:59.7]}
2... d5 {[%clk 0:02:58.5]} 3. e5 {[%clk 0:02:59.4]} 3... h5 {[%clk 0:02:58.4]}
4. c3 {[%clk 0:02:59.5]} 4... Bg4 {[%clk 0:02:58]} 5. Be2 {[%clk 0:02:59.2]}
5... Qd7 {[%clk 0:02:58.1]} 6. Nf3 {[%clk 0:02:51.1]} 6... O-O-O {[%clk
0:02:57.7]} 7. h3 {[%clk 0:02:50.1]} 7... Bxf3 {[%clk 0:02:54.4]} 8. Bxf3 {[%clk
0:02:49.7]} 8... h4 {[%clk 0:02:52.6]} 9. O-O {[%clk 0:02:45.5]} 9... f6 {[%clk
0:02:48.8]} 10. Re1 {[%clk 0:02:40.9]} 10... fxe5 {[%clk 0:02:47.1]} 11. dxe5
{[%clk 0:02:39.2]} 11... e6 {[%clk 0:02:47.7]} 12. b4 {[%clk 0:02:35.6]} 12...
Kb8 {[%clk 0:02:42]} 13. a4 {[%clk 0:02:31.1]} 13... Nh6 {[%clk 0:02:30.5]} 14.
b5 {[%clk 0:02:26.1]} 14... Na5 {[%clk 0:02:25.9]} 15. Nd2 {[%clk 0:02:25.1]}
15... Nf5 {[%clk 0:02:22.8]} 16. Bg4 {[%clk 0:02:22.6]} 16... g6 {[%clk
0:02:21.1]} 17. Nf3 {[%clk 0:02:18]} 17... Nc4 {[%clk 0:02:16.6]} 18. Qb3 {[%clk
0:02:12.8]} 18... Bc5 {[%clk 0:02:14.3]} 19. a5 {[%clk 0:02:07.8]} 19... Rdf8
{[%clk 0:02:07.4]} 20. Bg5 {[%clk 0:02:02.1]} 20... Be7 {[%clk 0:01:52.9]} 21.
Bxe7 {[%clk 0:01:57.2]} 21... Qxe7 {[%clk 0:01:51.7]} 22. Bxf5 {[%clk
0:01:47.1]} 22... gxf5 {[%clk 0:01:46.2]} 23. Nd4 {[%clk 0:01:45.4]} 23... Ka8
{[%clk 0:01:20.3]} 24. b6 {[%clk 0:01:42.3]} 24... Rh6 {[%clk 0:01:09]} 25. Ra2
{[%clk 0:01:22.4]} 25... a6 {[%clk 0:01:03.2]} 26. bxc7 {[%clk 0:01:19.8]} 26...
Qxc7 {[%clk 0:01:02.7]} 27. f4 {[%clk 0:01:18.1]} 27... Rg8 {[%clk 0:00:56.8]}
28. Qb4 {[%clk 0:01:14.1]} 28... Rhg6 {[%clk 0:00:45.4]} 29. Ree2 {[%clk
0:01:11.1]} 29... Rc8 {[%clk 0:00:38.4]} 30. Kh2 {[%clk 0:01:07.8]} 30... Qc5
{[%clk 0:00:31.3]} 31. Nf3 {[%clk 0:00:57.9]} 31... Rh6 {[%clk 0:00:23.9]} 32.
Re1 {[%clk 0:00:51.6]} 32... Ka7 {[%clk 0:00:19]} 33. Nd4 {[%clk 0:00:42.2]}
33... Qxb4 {[%clk 0:00:18.7]} 34. cxb4 {[%clk 0:00:42]} 34... Rc7 {[%clk
0:00:19]} 35. b5 {[%clk 0:00:41.4]} 35... Rc5 {[%clk 0:00:19]} 36. b6+ {[%clk
0:00:36.1]} 36... Kb8 {[%clk 0:00:19.4]} 37. Rc1 {[%clk 0:00:33.2]} 37... Kc8
{[%clk 0:00:19.2]} 38. Nb3 {[%clk 0:00:25.5]} 38... Rb5 {[%clk 0:00:17.6]} 39.
Nd2 {[%clk 0:00:24.8]} 39... Rc5 {[%clk 0:00:17.3]} 40. Nxc4 {[%clk 0:00:24.4]}
40... dxc4 {[%clk 0:00:17.5]} 41. Ra4 {[%clk 0:00:23.5]} 41... c3 {[%clk
0:00:16.9]} 42. Ra3 {[%clk 0:00:23.3]} 42... Kd7 {[%clk 0:00:15.1]} 43. Raxc3
{[%clk 0:00:23.2]} 43... Rxa5 {[%clk 0:00:13.4]} 44. Rc7+ {[%clk 0:00:19.1]}
44... Kd8 {[%clk 0:00:10.9]} 45. Rc8+ {[%clk 0:00:19]} 1-0

[Event "*** Titled Tuesday Blitz"]
[Site "Chess.com"]
[Date "2020.11.10"]
[Round "6"]
[White "GMJustin"]
[Black "dominikaf"]
[Result "1-0"]
[WhiteElo "2329"]
[BlackElo "2193"]
[TimeControl "180+1"]
[EndTime "11:10:09 PST"]
[Termination "GMJustin won by checkmate"]

1. e4 {[%clk 0:02:55.9]} 1... e5 {[%clk 0:02:59.8]} 2. Nc3 {[%clk 0:02:48.2]}
2... d6 {[%clk 0:02:54.9]} 3. d4 {[%clk 0:02:46.8]} 3... exd4 {[%clk 0:02:53.5]}
4. Qxd4 {[%clk 0:02:45.3]} 4... Nc6 {[%clk 0:02:53.8]} 5. Qe3 {[%clk 0:02:45]}
5... g6 {[%clk 0:02:51.9]} 6. Bc4 {[%clk 0:02:29.3]} 6... Be6 {[%clk 0:02:38.2]}
7. Nd5 {[%clk 0:02:16.7]} 7... Bg7 {[%clk 0:02:22.1]} 8. Nf3 {[%clk 0:02:07.7]}
8... Nge7 {[%clk 0:02:22]} 9. O-O {[%clk 0:01:40.6]} 9... O-O {[%clk 0:02:20.5]}
10. Ng5 {[%clk 0:01:38.5]} 10... Bxd5 {[%clk 0:02:05.5]} 11. exd5 {[%clk
0:01:34.3]} 11... Ne5 {[%clk 0:02:05]} 12. Bb3 {[%clk 0:01:27.8]} 12... h6
{[%clk 0:02:05.3]} 13. Ne4 {[%clk 0:01:15.9]} 13... f5 {[%clk 0:01:58.1]} 14.
Nc3 {[%clk 0:00:57.7]} 14... f4 {[%clk 0:01:21.6]} 15. Qh3 {[%clk 0:00:56.6]}
15... Qc8 {[%clk 0:01:06.7]} 16. Qxc8 {[%clk 0:00:54]} 16... Raxc8 {[%clk
0:01:06.1]} 17. Nb5 {[%clk 0:00:52.5]} 17... a6 {[%clk 0:00:48.6]} 18. Nd4
{[%clk 0:00:51.5]} 18... g5 {[%clk 0:00:39.3]} 19. Ne6 {[%clk 0:00:50.4]} 19...
Rf6 {[%clk 0:00:39.3]} 20. c4 {[%clk 0:00:40.5]} 20... b6 {[%clk 0:00:37.2]} 21.
Bd2 {[%clk 0:00:39]} 21... Nd7 {[%clk 0:00:36.5]} 22. Nxg7 {[%clk 0:00:33.2]}
22... Kxg7 {[%clk 0:00:34.8]} 23. Bc3 {[%clk 0:00:32.3]} 23... Kf7 {[%clk
0:00:35.2]} 24. Bxf6 {[%clk 0:00:31.6]} 24... Nxf6 {[%clk 0:00:35.3]} 25. Bc2
{[%clk 0:00:30.5]} 25... c6 {[%clk 0:00:32.3]} 26. dxc6 {[%clk 0:00:29.3]} 26...
Rxc6 {[%clk 0:00:33]} 27. Rfe1 {[%clk 0:00:28.7]} 27... Ng6 {[%clk 0:00:29.7]}
28. Bxg6+ {[%clk 0:00:25.4]} 28... Kxg6 {[%clk 0:00:29.9]} 29. b3 {[%clk
0:00:24.9]} 29... Kf5 {[%clk 0:00:30.1]} 30. Re7 {[%clk 0:00:24.1]} 30... b5
{[%clk 0:00:30]} 31. cxb5 {[%clk 0:00:23.1]} 31... axb5 {[%clk 0:00:30.5]} 32.
Rb7 {[%clk 0:00:23.1]} 32... Rc5 {[%clk 0:00:30.2]} 33. a4 {[%clk 0:00:20.6]}
33... bxa4 {[%clk 0:00:28.5]} 34. bxa4 {[%clk 0:00:20.8]} 34... Ra5 {[%clk
0:00:28.3]} 35. Rb5+ {[%clk 0:00:20.3]} 35... Rxb5 {[%clk 0:00:27.8]} 36. axb5
{[%clk 0:00:20.5]} 36... Nd5 {[%clk 0:00:28.4]} 37. Ra6 {[%clk 0:00:20.2]} 37...
Ke6 {[%clk 0:00:28.3]} 38. b6 {[%clk 0:00:19.5]} 38... Kd7 {[%clk 0:00:28.7]}
39. b7 {[%clk 0:00:19.1]} 39... Kc7 {[%clk 0:00:27.6]} 40. Rxd6 {[%clk
0:00:18.9]} 40... Nb4 {[%clk 0:00:24.5]} 41. b8=Q+ {[%clk 0:00:18.5]} 41... Kxb8
{[%clk 0:00:24.1]} 42. Rb6+ {[%clk 0:00:18.8]} 42... Kc7 {[%clk 0:00:25]} 43.
Rxb4 {[%clk 0:00:19.2]} 43... Kd6 {[%clk 0:00:25.6]} 44. h4 {[%clk 0:00:18.8]}
44... Ke5 {[%clk 0:00:25.4]} 45. hxg5 {[%clk 0:00:18.8]} 45... hxg5 {[%clk
0:00:26.3]} 46. Rb5+ {[%clk 0:00:18.8]} 46... Kf6 {[%clk 0:00:26.6]} 47. f3
{[%clk 0:00:19]} 47... Kg6 {[%clk 0:00:27]} 48. Kh2 {[%clk 0:00:19.1]} 48... Kf6
{[%clk 0:00:27.9]} 49. Kh3 {[%clk 0:00:19.4]} 49... Kg6 {[%clk 0:00:28.5]} 50.
Kg4 {[%clk 0:00:19.7]} 50... Kf6 {[%clk 0:00:29]} 51. Rxg5 {[%clk 0:00:19.9]}
51... Ke6 {[%clk 0:00:29.5]} 52. Kxf4 {[%clk 0:00:20.2]} 52... Kf6 {[%clk
0:00:29.7]} 53. Rf5+ {[%clk 0:00:19.9]} 53... Kg6 {[%clk 0:00:30.1]} 54. g4
{[%clk 0:00:20.1]} 54... Kh6 {[%clk 0:00:30.3]} 55. Rf6+ {[%clk 0:00:20.3]}
55... Kg7 {[%clk 0:00:30.5]} 56. Kg5 {[%clk 0:00:20.5]} 56... Kh7 {[%clk
0:00:30.8]} 57. Rf7+ {[%clk 0:00:20.9]} 57... Kg8 {[%clk 0:00:30.9]} 58. Kg6
{[%clk 0:00:21.2]} 58... Kh8 {[%clk 0:00:31.1]} 59. Rf8# {[%clk 0:00:21.8]} 1-0

[Event "*** Titled Tuesday Blitz"]
[Site "Chess.com"]
[Date "2020.11.10"]
[Round "6"]
[White "SantoBlue"]
[Black "vugarrasulov"]
[Result "0-1"]
[WhiteElo "2916"]
[BlackElo "2889"]
[TimeControl "180+1"]
[EndTime "11:10:13 PST"]
[Termination "vugarrasulov won by resignation"]

1. e4 {[%clk 0:03:00.9]} 1... c5 {[%clk 0:02:59.9]} 2. c3 {[%clk 0:02:57.6]}
2... Nf6 {[%clk 0:02:59.3]} 3. e5 {[%clk 0:02:56.7]} 3... Nd5 {[%clk 0:02:59.8]}
4. Nf3 {[%clk 0:02:56.8]} 4... e6 {[%clk 0:03:00]} 5. Bc4 {[%clk 0:02:51.9]}
5... d6 {[%clk 0:03:00.3]} 6. d4 {[%clk 0:02:49]} 6... Nb6 {[%clk 0:02:57.4]} 7.
Bb5+ {[%clk 0:02:42.7]} 7... Bd7 {[%clk 0:02:57]} 8. Bg5 {[%clk 0:02:31.8]} 8...
Be7 {[%clk 0:02:52.8]} 9. Bxe7 {[%clk 0:02:28.4]} 9... Qxe7 {[%clk 0:02:53.7]}
10. Bxd7+ {[%clk 0:02:28.1]} 10... N8xd7 {[%clk 0:02:52.4]} 11. Nbd2 {[%clk
0:02:25.7]} 11... cxd4 {[%clk 0:02:46.8]} 12. exd6 {[%clk 0:02:15.9]} 12... Qxd6
{[%clk 0:02:47.7]} 13. Nxd4 {[%clk 0:02:08]} 13... O-O {[%clk 0:02:47.2]} 14.
O-O {[%clk 0:02:08.1]} 14... Nf6 {[%clk 0:02:39.2]} 15. Qe2 {[%clk 0:02:01.2]}
15... a6 {[%clk 0:02:23.9]} 16. Ne4 {[%clk 0:01:56.3]} 16... Nxe4 {[%clk
0:02:22]} 17. Qxe4 {[%clk 0:01:57.2]} 17... Qd5 {[%clk 0:02:19.9]} 18. Qxd5
{[%clk 0:01:46.7]} 18... Nxd5 {[%clk 0:02:20.8]} 19. a4 {[%clk 0:01:42]} 19...
Rfd8 {[%clk 0:02:11.8]} 20. Rfd1 {[%clk 0:01:41.2]} 20... e5 {[%clk 0:02:06.8]}
21. Nf5 {[%clk 0:01:38.2]} 21... Kf8 {[%clk 0:02:05.6]} 22. Ng3 {[%clk
0:01:21.7]} 22... Nf4 {[%clk 0:02:00.2]} 23. Kf1 {[%clk 0:01:20.4]} 23... g6
{[%clk 0:01:54.6]} 24. Ne4 {[%clk 0:01:19.6]} 24... Ke7 {[%clk 0:01:50.4]} 25.
g3 {[%clk 0:01:03.9]} 25... Ne6 {[%clk 0:01:50.1]} 26. Nd2 {[%clk 0:01:03.1]}
26... Rac8 {[%clk 0:01:46.8]} 27. Ke2 {[%clk 0:00:58.4]} 27... Nc5 {[%clk
0:01:43.6]} 28. a5 {[%clk 0:00:49.1]} 28... f5 {[%clk 0:01:37.2]} 29. Nc4 {[%clk
0:00:42.9]} 29... Ke6 {[%clk 0:01:21.4]} 30. Nb6 {[%clk 0:00:40.1]} 30... Rb8
{[%clk 0:01:16.4]} 31. f3 {[%clk 0:00:38.2]} 31... g5 {[%clk 0:01:14.1]} 32. b4
{[%clk 0:00:37.2]} 32... Nd7 {[%clk 0:01:06.7]} 33. c4 {[%clk 0:00:31.3]} 33...
Nf6 {[%clk 0:01:04.5]} 34. b5 {[%clk 0:00:28]} 34... e4 {[%clk 0:01:04.2]} 35.
c5 {[%clk 0:00:24.5]} 35... axb5 {[%clk 0:00:54.7]} 36. Rxd8 {[%clk 0:00:23.5]}
36... Rxd8 {[%clk 0:00:54.7]} 37. a6 {[%clk 0:00:18.2]} 37... bxa6 {[%clk
0:00:54.7]} 38. Rxa6 {[%clk 0:00:19.1]} 38... Nd5 {[%clk 0:00:41.5]} 39. fxe4
{[%clk 0:00:17.1]} 39... fxe4 {[%clk 0:00:39.7]} 40. Nc4+ {[%clk 0:00:09.8]}
40... Kf5 {[%clk 0:00:27.8]} 41. Nd6+ {[%clk 0:00:10]} 41... Kg4 {[%clk
0:00:28.3]} 42. Nxb5 {[%clk 0:00:08.1]} 42... Rb8 {[%clk 0:00:25.4]} 43. Ra5
{[%clk 0:00:08.5]} 43... Rxb5 {[%clk 0:00:25.4]} 44. Rxb5 {[%clk 0:00:07.4]}
44... Nc3+ {[%clk 0:00:26]} 45. Ke3 {[%clk 0:00:08.3]} 45... Nxb5 {[%clk
0:00:26.6]} 46. Kxe4 {[%clk 0:00:08.9]} 46... Kh3 {[%clk 0:00:26.8]} 47. Kd5
{[%clk 0:00:06.7]} 47... Kxh2 {[%clk 0:00:26.2]} 48. Kc6 {[%clk 0:00:07]} 48...
Nc3 {[%clk 0:00:25.1]} 49. Kd7 {[%clk 0:00:04.3]} 49... Kxg3 {[%clk 0:00:23.3]}
0-1

[Event "*** Titled Tuesday Blitz"]
[Site "Chess.com"]
[Date "2020.11.10"]
[Round "6"]
[White "stepanosinovsky"]
[Black "ehrenfeld"]
[Result "1-0"]
[WhiteElo "2366"]
[BlackElo "2477"]
[TimeControl "180+1"]
[EndTime "11:10:14 PST"]
[Termination "stepanosinovsky won by resignation"]

1. e4 {[%clk 0:03:00.9]} 1... d6 {[%clk 0:02:43.8]} 2. d4 {[%clk 0:03:00.2]}
2... g6 {[%clk 0:02:42.9]} 3. g3 {[%clk 0:02:57.5]} 3... Bg7 {[%clk 0:02:42.8]}
4. Bg2 {[%clk 0:02:58.2]} 4... Nc6 {[%clk 0:02:41.9]} 5. Ne2 {[%clk 0:02:58.6]}
5... e5 {[%clk 0:02:40.1]} 6. c3 {[%clk 0:02:57]} 6... Nf6 {[%clk 0:02:38.8]} 7.
O-O {[%clk 0:02:56.3]} 7... O-O {[%clk 0:02:38.5]} 8. a4 {[%clk 0:02:51.3]} 8...
a5 {[%clk 0:02:37.5]} 9. Na3 {[%clk 0:02:44.9]} 9... Re8 {[%clk 0:02:36.5]} 10.
Qc2 {[%clk 0:02:37]} 10... exd4 {[%clk 0:02:31.8]} 11. cxd4 {[%clk 0:02:36]}
11... Nb4 {[%clk 0:02:30]} 12. Qb1 {[%clk 0:02:36.1]} 12... c6 {[%clk 0:02:23]}
13. f3 {[%clk 0:02:32.2]} 13... Be6 {[%clk 0:02:15.9]} 14. Be3 {[%clk
0:02:31.7]} 14... Nd7 {[%clk 0:02:07.4]} 15. Nc3 {[%clk 0:02:13.1]} 15... d5
{[%clk 0:02:04.7]} 16. Rd1 {[%clk 0:02:06.1]} 16... dxe4 {[%clk 0:02:00]} 17.
fxe4 {[%clk 0:02:07]} 17... Bg4 {[%clk 0:01:59.1]} 18. Rd2 {[%clk 0:02:05.7]}
18... Be6 {[%clk 0:01:45.1]} 19. Qf1 {[%clk 0:02:03]} 19... Nb6 {[%clk
0:01:39.7]} 20. Kh1 {[%clk 0:01:23.6]} 20... f5 {[%clk 0:01:38]} 21. d5 {[%clk
0:01:18]} 21... cxd5 {[%clk 0:01:37.7]} 22. exd5 {[%clk 0:01:16.9]} 22... Bf7
{[%clk 0:01:30.8]} 23. Bd4 {[%clk 0:01:10.5]} 23... Bxd4 {[%clk 0:01:28.5]} 24.
Rxd4 {[%clk 0:01:11.4]} 24... Qf6 {[%clk 0:01:24.7]} 25. Rad1 {[%clk 0:01:09.2]}
25... Nd7 {[%clk 0:01:19.2]} 26. d6 {[%clk 0:00:40.6]} 26... Nc6 {[%clk
0:01:17.7]} 27. R4d2 {[%clk 0:00:36.7]} 27... Rad8 {[%clk 0:01:15.7]} 28. Nab5
{[%clk 0:00:34.4]} 28... Nde5 {[%clk 0:01:10.5]} 29. Nd5 {[%clk 0:00:32.8]}
29... Bxd5 {[%clk 0:01:08.8]} 30. Rxd5 {[%clk 0:00:31.6]} 30... Ng4 {[%clk
0:01:04.7]} 31. Nc7 {[%clk 0:00:26.7]} 31... Rf8 {[%clk 0:00:54.9]} 32. Qe1
{[%clk 0:00:18.5]} 32... Qxb2 {[%clk 0:00:43.7]} 33. R1d2 {[%clk 0:00:12]} 33...
Qc3 {[%clk 0:00:36.6]} 34. h3 {[%clk 0:00:10.6]} 34... Ne3 {[%clk 0:00:29.1]}
35. R5d3 {[%clk 0:00:09.6]} 35... Qc5 {[%clk 0:00:19.5]} 36. Qxe3 {[%clk
0:00:09.3]} 36... Qxe3 {[%clk 0:00:18.2]} 37. Rxe3 {[%clk 0:00:10.2]} 37... Rf6
{[%clk 0:00:17.3]} 38. d7 {[%clk 0:00:09.7]} 38... Kf7 {[%clk 0:00:13.8]} 39.
Bd5+ {[%clk 0:00:08.1]} 39... Kg7 {[%clk 0:00:13.1]} 40. Bxc6 {[%clk 0:00:07.3]}
40... Rxc6 {[%clk 0:00:12]} 41. Ne6+ {[%clk 0:00:08]} 41... Rxe6 {[%clk
0:00:10]} 42. Rxe6 {[%clk 0:00:08.9]} 42... Kf7 {[%clk 0:00:10.1]} 43. Re3
{[%clk 0:00:08.3]} 43... Kf6 {[%clk 0:00:09.8]} 44. h4 {[%clk 0:00:08.7]} 44...
g5 {[%clk 0:00:10.7]} 45. hxg5+ {[%clk 0:00:08.6]} 45... Kxg5 {[%clk 0:00:10.5]}
46. Re8 {[%clk 0:00:08.8]} 46... Kg4 {[%clk 0:00:11.4]} 47. Rxd8 {[%clk
0:00:08.2]} 1-0

[Event "*** Titled Tuesday Blitz"]
[Site "Chess.com"]
[Date "2020.11.10"]
[Round "6"]
[White "blitzking1729"]
[Black "swimmerchess"]
[Result "1-0"]
[WhiteElo "2549"]
[BlackElo "2817"]
[TimeControl "180+1"]
[EndTime "11:10:15 PST"]
[Termination "blitzking1729 won by resignation"]

1. d4 {[%clk 0:03:00.9]} 1... Nf6 {[%clk 0:02:58.6]} 2. Bg5 {[%clk 0:03:01]}
2... Ne4 {[%clk 0:02:56.1]} 3. Bf4 {[%clk 0:03:00.9]} 3... c5 {[%clk 0:02:51]}
4. f3 {[%clk 0:03:00.7]} 4... Qa5+ {[%clk 0:02:50.9]} 5. c3 {[%clk 0:02:58.9]}
5... Nf6 {[%clk 0:02:51.2]} 6. Nd2 {[%clk 0:02:57.3]} 6... cxd4 {[%clk
0:02:49.1]} 7. Nb3 {[%clk 0:02:56.8]} 7... Qf5 {[%clk 0:02:49.2]} 8. Qxd4 {[%clk
0:02:50.4]} 8... Nc6 {[%clk 0:02:48.4]} 9. Qd2 {[%clk 0:02:46.3]} 9... e5 {[%clk
0:02:25.9]} 10. Bg3 {[%clk 0:02:41.7]} 10... d5 {[%clk 0:02:22.4]} 11. e3 {[%clk
0:02:40.5]} 11... h5 {[%clk 0:02:19.5]} 12. Bd3 {[%clk 0:02:36.3]} 12... e4
{[%clk 0:02:16.6]} 13. fxe4 {[%clk 0:02:35.2]} 13... Nxe4 {[%clk 0:02:12.6]} 14.
Bxe4 {[%clk 0:02:34.6]} 14... Qxe4 {[%clk 0:02:11]} 15. Nf3 {[%clk 0:02:34]}
15... h4 {[%clk 0:02:09]} 16. Bf4 {[%clk 0:02:29.1]} 16... h3 {[%clk 0:02:07.9]}
17. O-O-O {[%clk 0:02:24.2]} 17... Bf5 {[%clk 0:02:04.5]} 18. Qe2 {[%clk
0:02:05.4]} 18... Qb1+ {[%clk 0:01:39.2]} 19. Kd2 {[%clk 0:02:02.1]} 19... Qxb2+
{[%clk 0:01:39.4]} 20. Ke1 {[%clk 0:02:01.7]} 20... hxg2 {[%clk 0:01:35.6]} 21.
Rg1 {[%clk 0:01:58.9]} 21... Qxe2+ {[%clk 0:01:05.9]} 22. Kxe2 {[%clk
0:01:58.1]} 22... O-O-O {[%clk 0:01:03.4]} 23. Rxg2 {[%clk 0:01:52.6]} 23... f6
{[%clk 0:01:02]} 24. Nfd4 {[%clk 0:01:46.1]} 24... Be4 {[%clk 0:01:00.1]} 25.
Nxc6 {[%clk 0:01:42.5]} 25... bxc6 {[%clk 0:00:57.3]} 26. Rf2 {[%clk 0:01:42.1]}
26... g5 {[%clk 0:00:53.5]} 27. Bg3 {[%clk 0:01:40.8]} 27... f5 {[%clk
0:00:53.8]} 28. Nd4 {[%clk 0:01:37.4]} 28... Bg7 {[%clk 0:00:46.6]} 29. Nxf5
{[%clk 0:01:33.8]} 29... Bxc3 {[%clk 0:00:24.9]} 30. Nd6+ {[%clk 0:01:29.8]}
30... Rxd6 {[%clk 0:00:25.1]} 31. Bxd6 {[%clk 0:01:29.4]} 31... g4 {[%clk
0:00:26]} 32. Rc1 {[%clk 0:01:28.8]} 32... Ba5 {[%clk 0:00:23.4]} 33. Rf7 {[%clk
0:01:14.4]} 33... d4 {[%clk 0:00:20.5]} 34. exd4 {[%clk 0:01:10.2]} 34... Bd5
{[%clk 0:00:20.5]} 35. Rxa7 {[%clk 0:01:08.9]} 35... Re8+ {[%clk 0:00:18.9]} 36.
Kf2 {[%clk 0:00:57.8]} 36... Bd8 {[%clk 0:00:18.4]} 37. Rb1 {[%clk 0:00:53.6]}
37... Bh4+ {[%clk 0:00:12.1]} 38. Kg1 {[%clk 0:00:51.9]} 38... Re1+ {[%clk
0:00:09.7]} 39. Rxe1 {[%clk 0:00:51.3]} 39... Bxe1 {[%clk 0:00:10.6]} 40. Be5
{[%clk 0:00:47.5]} 40... Bc3 {[%clk 0:00:10]} 41. Kf2 {[%clk 0:00:37.8]} 41...
Kd8 {[%clk 0:00:06.2]} 42. Ke3 {[%clk 0:00:36.4]} 42... c5 {[%clk 0:00:05.3]}
43. Bc7+ {[%clk 0:00:27.7]} 43... Kd7 {[%clk 0:00:04.7]} 44. Ba5+ {[%clk
0:00:26.6]} 1-0

[Event "*** Titled Tuesday Blitz"]
[Site "Chess.com"]
[Date "2020.11.10"]
[Round "6"]
[White "Xtrmntr78"]
[Black "Nara_Kh"]
[Result "0-1"]
[WhiteElo "2550"]
[BlackElo "2381"]
[TimeControl "180+1"]
[EndTime "11:10:15 PST"]
[Termination "Nara_Kh won on time"]

1. c4 {[%clk 0:03:00.9]} 1... e5 {[%clk 0:02:58.1]} 2. Nc3 {[%clk 0:03:00.7]}
2... Bb4 {[%clk 0:02:55.7]} 3. Nd5 {[%clk 0:03:00]} 3... Bc5 {[%clk 0:02:52.9]}
4. Nf3 {[%clk 0:03:00.2]} 4... d6 {[%clk 0:02:51.7]} 5. e3 {[%clk 0:02:59.6]}
5... c6 {[%clk 0:02:45.8]} 6. Nc3 {[%clk 0:02:58.9]} 6... Qe7 {[%clk 0:02:40.6]}
7. Be2 {[%clk 0:02:58]} 7... Nf6 {[%clk 0:02:40.2]} 8. O-O {[%clk 0:02:57.4]}
8... O-O {[%clk 0:02:40]} 9. d4 {[%clk 0:02:56.4]} 9... Bb4 {[%clk 0:02:38.2]}
10. Bd2 {[%clk 0:02:52.6]} 10... Na6 {[%clk 0:02:20.6]} 11. a3 {[%clk
0:02:48.4]} 11... Ba5 {[%clk 0:02:02]} 12. b4 {[%clk 0:02:40.2]} 12... Bc7
{[%clk 0:02:00.7]} 13. b5 {[%clk 0:02:40.2]} 13... Nb8 {[%clk 0:01:59.7]} 14.
Rb1 {[%clk 0:02:31.7]} 14... e4 {[%clk 0:01:45.1]} 15. Ne1 {[%clk 0:02:29.9]}
15... Bf5 {[%clk 0:01:38.6]} 16. bxc6 {[%clk 0:02:25.4]} 16... bxc6 {[%clk
0:01:38.3]} 17. Rb7 {[%clk 0:02:24.7]} 17... d5 {[%clk 0:01:34.4]} 18. Qb3
{[%clk 0:02:10.1]} 18... Bc8 {[%clk 0:00:59.4]} 19. Qb4 {[%clk 0:01:44.1]} 19...
Bxh2+ {[%clk 0:00:53.9]} 20. Kxh2 {[%clk 0:01:42.3]} 20... Qxb7 {[%clk
0:00:53.8]} 21. cxd5 {[%clk 0:01:42.4]} 21... cxd5 {[%clk 0:00:51.8]} 22. Qd6
{[%clk 0:01:23.5]} 22... Qc6 {[%clk 0:00:35.5]} 23. Qf4 {[%clk 0:01:17]} 23...
Nbd7 {[%clk 0:00:24.9]} 24. Nc2 {[%clk 0:01:16.6]} 24... Nb6 {[%clk 0:00:23.9]}
25. Nb4 {[%clk 0:01:15.6]} 25... Qe6 {[%clk 0:00:24]} 26. Nb5 {[%clk 0:01:12.9]}
26... Ng4+ {[%clk 0:00:21.3]} 27. Kg3 {[%clk 0:01:03.1]} 27... Qg6 {[%clk
0:00:20.5]} 28. Bxg4 {[%clk 0:01:02]} 28... h5 {[%clk 0:00:20.5]} 29. Nc7 {[%clk
0:00:58.5]} 29... Bxg4 {[%clk 0:00:19.5]} 30. Kh2 {[%clk 0:00:52.1]} 30... Rad8
{[%clk 0:00:17.8]} 31. Nba6 {[%clk 0:00:40.8]} 31... Rd7 {[%clk 0:00:16.9]} 32.
Bb4 {[%clk 0:00:38.9]} 32... Rc8 {[%clk 0:00:16.6]} 33. Rc1 {[%clk 0:00:34.4]}
33... Nc4 {[%clk 0:00:16.5]} 34. Nb5 {[%clk 0:00:30.8]} 34... Qb6 {[%clk
0:00:15.5]} 35. Nc5 {[%clk 0:00:16.4]} 35... Qxb5 {[%clk 0:00:15.5]} 36. Nxd7
{[%clk 0:00:16.3]} 36... Qxd7 {[%clk 0:00:16.4]} 37. f3 {[%clk 0:00:16.5]} 37...
exf3 {[%clk 0:00:15]} 38. gxf3 {[%clk 0:00:16.4]} 38... Be6 {[%clk 0:00:15.2]}
39. Rg1 {[%clk 0:00:15.4]} 39... Qc7 {[%clk 0:00:14.8]} 40. Qxc7 {[%clk
0:00:11.5]} 40... Rxc7 {[%clk 0:00:15.7]} 41. e4 {[%clk 0:00:11.6]} 41... a5
{[%clk 0:00:15.1]} 42. Rg5 {[%clk 0:00:10.8]} 42... axb4 {[%clk 0:00:14.7]} 0-1

[Event "*** Titled Tuesday Blitz"]
[Site "Chess.com"]
[Date "2020.11.10"]
[Round "6"]
[White "PSvidler"]
[Black "GMTalks_Youtube"]
[Result "1-0"]
[WhiteElo "2872"]
[BlackElo "2629"]
[TimeControl "180+1"]
[EndTime "11:10:16 PST"]
[Termination "PSvidler won on time"]

1. c4 {[%clk 0:02:58.3]} 1... e5 {[%clk 0:02:57.8]} 2. g3 {[%clk 0:02:54.3]}
2... Nf6 {[%clk 0:02:55.8]} 3. Bg2 {[%clk 0:02:53.7]} 3... d5 {[%clk 0:02:55.2]}
4. cxd5 {[%clk 0:02:53.6]} 4... Nxd5 {[%clk 0:02:55]} 5. Nc3 {[%clk 0:02:54.1]}
5... Nb6 {[%clk 0:02:53.6]} 6. d3 {[%clk 0:02:54]} 6... Be7 {[%clk 0:02:51.2]}
7. Be3 {[%clk 0:02:53.7]} 7... O-O {[%clk 0:02:46.8]} 8. Rc1 {[%clk 0:02:53.2]}
8... Re8 {[%clk 0:02:42.6]} 9. h4 {[%clk 0:02:43.5]} 9... Bf8 {[%clk 0:02:40.2]}
10. Nh3 {[%clk 0:02:34.4]} 10... f6 {[%clk 0:02:33.6]} 11. d4 {[%clk 0:02:00.6]}
11... exd4 {[%clk 0:02:21.3]} 12. Bxd4 {[%clk 0:01:56.5]} 12... Nc6 {[%clk
0:02:13.7]} 13. Bxc6 {[%clk 0:01:51.5]} 13... bxc6 {[%clk 0:02:13.2]} 14. Nf4
{[%clk 0:01:51.6]} 14... Bd6 {[%clk 0:01:51.4]} 15. h5 {[%clk 0:01:38.7]} 15...
Bxf4 {[%clk 0:01:49.3]} 16. gxf4 {[%clk 0:01:38.6]} 16... Nd5 {[%clk 0:01:45.6]}
17. h6 {[%clk 0:01:23.7]} 17... g6 {[%clk 0:01:42]} 18. Qd2 {[%clk 0:01:12.2]}
18... Bg4 {[%clk 0:01:25.7]} 19. Be3 {[%clk 0:00:54.8]} 19... Nxe3 {[%clk
0:00:49.9]} 20. fxe3 {[%clk 0:00:54.7]} 20... Qe7 {[%clk 0:00:49.6]} 21. e4
{[%clk 0:00:51.3]} 21... Rad8 {[%clk 0:00:36.9]} 22. Qe3 {[%clk 0:00:51.5]}
22... Bf5 {[%clk 0:00:31.7]} 23. Kf2 {[%clk 0:00:51.5]} 23... Bxe4 {[%clk
0:00:30.5]} 24. Nxe4 {[%clk 0:00:51.5]} 24... Qxe4 {[%clk 0:00:29.9]} 25. Qxe4
{[%clk 0:00:52.2]} 25... Rxe4 {[%clk 0:00:29]} 26. e3 {[%clk 0:00:50.7]} 26...
Rd6 {[%clk 0:00:24]} 27. Kf3 {[%clk 0:00:49.7]} 27... Ree6 {[%clk 0:00:18.6]}
28. Rc3 {[%clk 0:00:44]} 28... f5 {[%clk 0:00:17.4]} 29. Ra3 {[%clk 0:00:42.1]}
29... Re7 {[%clk 0:00:15.7]} 30. Rxa7 {[%clk 0:00:38.9]} 30... Rd3 {[%clk
0:00:15.1]} 31. Re1 {[%clk 0:00:38.8]} 31... Kf7 {[%clk 0:00:12.6]} 32. Ra3
{[%clk 0:00:33.3]} 32... Rd2 {[%clk 0:00:10.8]} 33. Re2 {[%clk 0:00:31.4]} 33...
Rd1 {[%clk 0:00:10.1]} 34. Kg2 {[%clk 0:00:31.3]} 34... Red7 {[%clk 0:00:08.5]}
35. Rc3 {[%clk 0:00:29.6]} 35... R7d2 {[%clk 0:00:07.4]} 36. Kf2 {[%clk
0:00:27.3]} 36... Rxe2+ {[%clk 0:00:06.3]} 37. Kxe2 {[%clk 0:00:27.5]} 37... Rb1
{[%clk 0:00:05.9]} 38. Rc2 {[%clk 0:00:22.4]} 38... Ke7 {[%clk 0:00:04.9]} 39.
Kd3 {[%clk 0:00:19.6]} 39... Kd6 {[%clk 0:00:03.6]} 40. Rh2 {[%clk 0:00:18.5]}
40... c5 {[%clk 0:00:01.4]} 41. a4 {[%clk 0:00:16.8]} 41... Kd5 {[%clk
0:00:00.8]} 42. Kc3 {[%clk 0:00:16.8]} 1-0